bitfinex/quotes_ETHUSD_20240730
["timestamp","ask_amount","ask_price","bid_price","bid_amount"]
[1722357866939,2.666,3330.1,3329.0,3.10338197]
[1722357867119,3.00333,3329.7,3329.0,0.09953197]
[1722357867299,3.00345,3329.5,3329.0,0.09953197]
[1722357868120,3.07628517,3329.6,3329.0,0.09953197]
[1722357868345,3.00326,3329.8,3329.1,3.0038]
[1722357868521,4.104394,3330.0,3329.2,3.00371]
[1722357868737,3.00314,3329.9,3329.2,3.00367]
[1722357869064,3.00314,3329.9,3329.3,0.09976872]
[1722357869387,3.00319,3329.8,3329.3,0.09976872]
[1722357869651,3.00319,3329.8,3329.1,3.00375]
[1722357869787,5.66896,3330.1,3329.4,3.10323088]
[1722357869986,0.07292517,3330.0,3329.5,3.00344]
[1722357870328,0.07292517,3330.0,3329.5,0.09965304]
[1722357870485,3.00325,3329.8,3329.5,0.09965304]
[1722357870987,3.00325,3329.8,3329.6,0.0995952]
[1722357871184,0.07292517,3329.7,3329.3,0.301]
[1722357871510,0.07292517,3329.7,3329.2,0.301]
[1722357871709,2.666,3330.1,3329.3,3.30457]
[1722357872225,3.07593517,3330.0,3329.3,3.30457]
[1722357872552,3.00313,3329.9,3329.3,0.301]
[1722357872781,0.07292517,3329.8,3329.3,0.301]
[1722357873050,0.07292517,3329.8,3329.3,3.30461]
[1722357873277,3.00278,3330.3,3329.5,3.0034]
[1722357873393,3.00278,3330.3,3329.5,3.00339]
[1722357873599,0.07292517,3330.2,3329.5,3.00339]
[1722357873794,3.07574517,3330.2,3329.5,3.00339]
[1722357874003,3.07574517,3330.2,3329.5,3.00345]
[1722357874241,3.00291,3330.1,3329.4,0.06006502]
[1722357874539,3.07574517,3330.2,3329.4,0.06006502]
[1722357874540,3.003,3330.0,3329.4,0.06006502]
[1722357874741,3.68379969,3330.0,3329.3,0.301]
[1722357874942,3.00322,3329.8,3329.3,0.301]
[1722357875141,0.07292517,3329.7,3329.3,0.301]
[1722357875839,0.07292517,3329.7,3329.3,3.30463]
[1722357876158,0.07292517,3329.8,3329.3,0.301]
[1722357876938,3.00327,3329.7,3329.3,0.301]
[1722357877139,0.07292517,3329.8,3329.3,0.301]
[1722357878062,0.07292517,3329.8,3329.4,0.09952775]
[1722357878357,0.07292517,3329.8,3329.1,0.301]
[1722357878655,0.07292517,3329.8,3329.5,0.09946991]
[1722357878954,0.07292517,3329.8,3329.6,0.09941208]
[1722357879116,0.07292517,3329.8,3329.4,3.00354]
[1722357879314,3.07614517,3329.8,3329.5,0.09946991]
[1722357879559,3.07619517,3329.7,3329.2,0.301]
[1722357879712,3.0034,3329.6,3329.2,0.301]
[1722357879917,0.07292517,3329.5,3329.2,0.301]
[1722357880629,0.07292517,3329.5,3329.1,0.301]
[1722357880921,3.61114852,3329.8,3329.1,0.301]
[1722357880922,0.07292517,3329.6,3329.1,0.301]
[1722357881429,3.07629517,3329.6,3328.9,3.00394]
[1722357881740,0.07292517,3329.6,3328.9,3.00394]
[1722357881942,0.07292517,3329.6,3329.0,3.00385]
[1722357882455,0.07292517,3329.6,3329.1,3.00381]
[1722357882642,0.07292517,3329.6,3328.8,3.30502]
[1722357882643,0.07292517,3329.6,3328.8,0.301]
[1722357882843,0.07292517,3329.6,3328.9,0.0600733]
[1722357883224,0.07292517,3329.6,3329.2,0.301]
[1722357883649,0.07292517,3329.6,3329.2,3.30465]
[1722357883947,0.07292517,3329.8,3329.2,3.30465]
[1722357884557,0.07292517,3329.8,3329.3,3.00362]
[1722357884765,0.07292517,3329.8,3329.2,3.30472]
[1722357885086,0.07292517,3329.8,3329.4,3.0035]
[1722357885322,7.39,3330.1,3329.5,0.06006674]
[1722357885499,7.39,3330.1,3329.6,3.3038]
[1722357885699,7.39,3330.1,3329.9,3.00303]
[1722357885979,3.00255,3330.5,3330.0,0.09918077]
[1722357886290,3.00255,3330.5,3329.8,3.00317]
[1722357886291,3.00255,3330.5,3329.8,3.00313]
[1722357886432,3.00255,3330.5,3330.1,0.09912295]
[1722357886739,3.00255,3330.5,3329.8,3.00313]
[1722357886949,7.39,3330.6,3329.9,3.10226646]
[1722357887275,8.729243,3330.6,3330.0,3.00298]
[1722357887483,8.729243,3330.6,3329.9,3.10230646]
[1722357887682,3.07551517,3330.5,3330.1,0.09910082]
[1722357887991,8.729243,3330.6,3330.1,0.09910082]
[1722357887992,0.07292517,3330.4,3330.2,0.09900075]
[1722357888680,7.39,3330.6,3330.2,0.09900075]
[1722357889202,0.07292517,3330.5,3330.3,0.09894696]
[1722357889489,1.84827417,3330.8,3329.7,38.33494706]
[1722357889634,3.00269,3330.4,3329.7,38.33494706]
[1722357889834,0.07292517,3330.3,3329.7,38.33494706]
[1722357890165,3.00247,3330.6,3329.9,3.00304]
[1722357890362,3.00247,3330.6,3329.9,6.00607]
[1722357890533,3.00247,3330.6,3329.9,3.00303]
[1722357890962,3.00233,3330.8,3329.8,0.06005811]
[1722357891133,3.00233,3330.8,3330.1,3.00282]
[1722357891333,3.00233,3330.8,3330.1,6.00567]
[1722357891750,4.9373,3330.9,3330.1,6.00567]
[1722357891751,4.9373,3330.9,3330.3,3.00273]
[1722357892269,2.666,3330.9,3330.3,3.00273]
[1722357892428,2.666,3330.9,3330.2,3.00281]
[1722357892634,10.39215,3331.0,3330.2,3.00275]
[1722357892834,10.39215,3331.0,3330.2,3.30375]
[1722357893499,7.39,3331.0,3330.2,0.6969317]
[1722357893700,7.39,3331.0,3330.6,3.00245]
[1722357893857,3.00174,3331.4,3330.6,3.00245]
[1722357893858,3.00187,3331.3,3330.6,6.00485]
[1722357894036,3.00187,3331.3,3330.6,3.0024]
[1722357894236,0.07292517,3331.2,3330.6,3.0024]
[1722357894653,3.00187,3331.3,3330.6,3.0024]
[1722357894849,7.39,3331.4,3330.7,3.00232]
[1722357895163,10.39178,3331.4,3330.7,3.00232]
[1722357895481,13.39358,3331.4,3330.6,6.33512]
[1722357895649,3.00185,3331.3,3330.6,3.33272]
[1722357895847,0.07292517,3331.2,3330.6,3.33272]
[1722357896053,10.39175,3331.4,3330.7,3.00231]
[1722357896531,3.00185,3331.3,3330.6,3.00239]
[1722357897041,3.00185,3331.3,3330.7,3.00237]
[1722357897979,7.39,3331.4,3330.7,3.00237]
[1722357898281,3.00185,3331.3,3330.7,3.00237]
[1722357898439,7.39,3331.4,3330.7,3.00229]
[1722357898640,3.00184,3331.3,3330.7,3.00229]
[1722357899680,10.39174,3331.4,3330.8,3.00226]
[1722357899833,13.39354,3331.4,3330.7,3.00237]
[1722357900040,10.39174,3331.4,3330.7,3.00237]
[1722357900240,10.39174,3331.4,3330.4,3.30358]
[1722357900241,0.07292517,3331.3,3330.8,0.09840856]
[1722357900473,0.07292517,3331.3,3330.4,3.30358]
[1722357900793,6.00396,3331.2,3330.5,3.00255]
[1722357900963,0.07292517,3331.1,3330.5,3.10113195]
[1722357901291,10.39176,3331.4,3330.5,0.98674315]
[1722357901437,3.07475517,3331.3,3330.6,3.0024]
[1722357901637,3.00183,3331.3,3330.7,3.00232]
[1722357901854,0.07292517,3331.2,3330.7,3.09749575]
[1722357902463,0.07292517,3331.2,3330.7,0.09517575]
[1722357902671,3.00202,3331.1,3330.7,0.09517575]
[1722357902884,6.00456,3330.8,3330.7,0.09517575]
[1722357903039,6.00456,3330.8,3329.9,5.29324]
[1722357903040,3.00249,3330.6,3329.9,5.29324]
[1722357903245,0.07292517,3330.5,3329.7,38.33495706]
[1722357903473,3.00265,3330.4,3329.8,3.04901288]
[1722357903676,0.07292517,3330.3,3329.8,6.05217288]
[1722357903854,0.07292517,3330.3,3329.8,3.04901288]
[1722357904072,0.07292517,3330.3,3329.9,3.00304]
[1722357904280,3.00246,3330.6,3329.9,6.68705143]
[1722357904281,0.07292517,3330.5,3329.9,6.68705143]
[1722357904486,0.07292517,3330.5,3329.9,3.68401143]
[1722357904796,0.07292517,3330.5,3329.9,3.68407143]
[1722357905187,0.07292517,3330.5,3330.0,3.00299]
[1722357906297,0.07292517,3330.5,3330.1,3.00285]
[1722357906597,3.07533517,3330.7,3330.4,0.33173706]
[1722357907271,3.00255,3330.5,3329.9,3.00304]
[1722357907469,0.07292517,3330.6,3330.1,3.00282]
[1722357907671,7.39,3330.9,3330.4,3.00259]
[1722357907900,7.39,3330.9,3330.6,3.00239]
[1722357908063,3.00188,3331.3,3330.6,38.00239]
[1722357908494,3.00196,3331.2,3330.6,3.00239]
[1722357908662,9.8327,3331.4,3330.5,0.39183543]
[1722357908862,2.666,3331.5,3330.5,0.39183543]
[1722357908863,0.07292517,3331.3,3330.8,3.00223]
[1722357909059,0.07292517,3331.3,3330.6,38.0024]
[1722357909299,0.07292517,3331.3,3330.7,3.00232]
[1722357909937,3.00152,3331.7,3331.0,3.00208]
[1722357910248,3.00152,3331.7,3330.6,38.04901288]
[1722357910249,3.00162,3331.6,3330.9,3.00216]
[1722357910394,3.00166,3331.5,3330.9,0.38073243]
[1722357910908,3.07473517,3331.4,3330.9,0.38073243]
[1722357911093,0.07292517,3331.4,3330.9,0.38073243]
[1722357911295,3.0017,3331.5,3330.9,0.38073243]
[1722357911521,3.00153,3331.7,3330.9,0.38073243]
[1722357911834,3.00153,3331.7,3331.0,3.00207]
[1722357912038,2.666,3331.9,3331.2,3.00191]
[1722357912212,5.66729,3331.9,3331.2,3.00186]
[1722357912937,2.666,3331.9,3331.2,3.00186]
[1722357913125,3.00147,3331.7,3331.0,3.00204]
[1722357913300,3.00138,3331.8,3331.0,3.00204]
[1722357913500,3.00138,3331.8,3331.1,3.00196]
[1722357913701,3.00161,3331.6,3331.0,0.33827724]
[1722357913901,3.00183,3331.3,3330.6,38.0024]
[1722357914216,0.07292517,3331.2,3330.6,38.0024]
[1722357914417,0.07292517,3331.2,3330.6,35.0]
[1722357914613,0.07292517,3331.2,3330.7,3.00232]
[1722357914816,3.07488517,3331.2,3330.6,35.0]
[1722357915140,0.07292517,3331.1,3330.5,0.33178813]
[1722357915342,0.07292517,3331.1,3330.7,0.08890565]
[1722357915543,0.07292517,3331.1,3330.6,3.09141345]
[1722357915702,0.07292517,3331.3,3330.8,0.08884786]
[1722357915902,7.95881,3331.5,3330.7,0.08890565]
[1722357916196,0.07292517,3331.4,3330.8,0.08884786]
[1722357916402,3.00193,3331.2,3330.5,38.33425813]
[1722357916773,0.07292517,3331.1,3330.6,3.00246]
[1722357916978,0.07292517,3331.2,3330.6,6.00486]
[1722357917276,0.07292517,3331.2,3330.6,0.08898747]
[1722357917277,3.00214,3331.0,3330.6,0.08898747]
[1722357917477,3.00228,3330.8,3330.6,0.08898747]
[1722357917660,3.07529517,3330.7,3330.6,0.08898747]
[1722357917873,8.74366517,3330.7,3330.6,0.08898747]
[1722357918176,11.74603517,3330.7,3330.6,0.08898747]
[1722357918397,6.00492,3330.6,3330.5,0.33178813]
[1722357918696,6.07784517,3330.6,3330.5,0.33178813]
[1722357918851,9.07784517,3330.6,3330.5,0.33178813]
[1722357923278,11.40274517,3330.6,3330.5,0.33178813]
[1722357923465,16.25435304,3330.6,3330.5,0.33178813]
[1722357923871,13.17896787,3330.6,3330.5,0.33178813]
[1722357926663,16.18142787,3330.6,3330.5,0.33178813]
[1722357927398,19.34742787,3330.6,3330.5,0.33178813]
[1722357927755,3.00328,3329.7,3329.2,35.0]
[1722357927989,0.07292517,3329.6,3329.3,0.08982726]
[1722357928264,3.07628517,3329.6,3329.2,35.0]
[1722357928475,3.07628517,3329.6,3329.4,0.08976942]
[1722357928683,3.07628517,3329.6,3329.3,0.08982726]
[1722357928908,3.07628517,3329.6,3329.5,0.08971158]
[1722357929055,3.00345,3329.5,3329.4,0.08976942]
[1722357929255,3.07637517,3329.5,3329.4,0.08976942]
[1722357929495,3.73806834,3329.5,3328.7,3.00414]
[1722357929718,6.74151834,3329.5,3329.4,0.08976942]
[1722357930000,3.00374,3329.2,3328.6,2.5547]
[1722357930213,0.07292517,3329.1,3328.6,5.55894]
[1722357931908,3.07674517,3329.1,3328.6,0.301]
[1722357932498,0.07292517,3329.1,3328.6,0.301]
[1722357932713,0.07292517,3329.1,3328.7,6.00825]
[1722357932915,0.07292517,3329.1,3328.7,3.00411]
[1722357933117,2.4514,3329.0,3328.3,0.301]
[1722357933285,0.07292517,3328.9,3328.4,3.00444]
[1722357933486,0.07292517,3328.9,3328.5,35.0]
[1722357933812,0.07292517,3328.9,3328.3,0.301]
[1722357934003,0.07292517,3328.9,3328.5,3.00432]
[1722357934207,0.07292517,3328.9,3328.5,3.00429]
[1722357934410,0.07292517,3328.9,3328.6,35.0]
[1722357936351,0.07292517,3329.0,3328.6,35.0]
[1722357936711,0.07292517,3329.0,3328.6,38.00421]
[1722357937415,3.07665517,3329.2,3328.6,38.00421]
[1722357937631,1.19269669,3329.2,3328.6,38.00421]
[1722357937816,1.11977152,3329.2,3328.6,38.0042]
[1722357938712,1.11977152,3329.2,3328.7,3.00412]
[1722357939541,1.11977152,3329.2,3328.6,38.00425]
[1722357939742,5.66999,3328.9,3328.6,35.0]
[1722357939938,0.07292517,3328.8,3328.3,3.00448]
[1722357940144,0.07292517,3328.8,3328.4,3.00443]
[1722357940345,0.07292517,3328.8,3328.5,35.0]
[1722357943209,0.07292517,3328.8,3328.0,2.5761]
[1722357943423,0.07292517,3328.8,3328.4,3.00444]
[1722357943603,0.07292517,3328.8,3328.4,3.00439]
[1722357944396,5.66968,3329.3,3328.4,3.30538]
[1722357944600,3.0,3329.2,3328.6,3.00425]
[1722357944771,5.66968,3329.3,3328.6,3.00425]
[1722357944972,7.220788,3329.3,3328.6,3.00425]
[1722357945168,3.00375,3329.2,3328.6,3.00425]
[1722357945399,3.00375,3329.2,3328.7,0.08501058]
[1722357945400,0.07292517,3329.2,3328.7,0.08501058]
[1722357945972,3.07665517,3329.2,3328.7,0.08501058]
[1722357946171,3.00386,3329.1,3328.7,0.08501058]
[1722357946379,0.07292517,3329.0,3328.4,3.00438]
[1722357946590,0.07292517,3329.0,3328.5,3.08938652]
[1722357947873,0.07292517,3329.0,3328.5,0.08509652]
[1722357948187,0.38059869,3329.0,3328.5,3.08944652]
[1722357948712,0.07292517,3329.0,3328.5,3.08944652]
[1722357948918,0.07292517,3329.1,3328.5,3.08944652]
[1722357949637,0.07292517,3329.1,3328.5,0.08509652]
[1722357949920,0.07292517,3329.1,3327.9,3.00489]
[1722357949921,3.00428,3328.6,3327.9,3.00489]
[1722357950077,0.07292517,3328.5,3328.0,3.00479]
[1722357950438,0.07292517,3328.5,3328.0,3.09017593]
[1722357950580,0.07292517,3328.5,3328.0,0.08538593]
[1722357950779,0.07292517,3328.5,3327.8,38.30591]
[1722357950981,0.07292517,3328.5,3327.9,0.08262043]
[1722357951725,0.07292517,3328.5,3328.0,3.00476]
[1722357951880,3.07711517,3328.7,3328.0,3.00475]
[1722357952081,4.18480717,3328.7,3328.1,0.08250465]
[1722357952427,1.107692,3328.7,3328.1,3.08716465]
[1722357952786,1.107692,3328.7,3328.2,3.00458]
[1722357953018,1.107692,3328.7,3328.3,0.08238889]
[1722357953303,2.4027,3328.8,3328.2,38.00458]
[1722357953501,2.4027,3328.8,3328.4,0.08233101]
[1722357953703,2.4027,3328.8,3328.3,0.08238889]
[1722357953906,2.4027,3328.8,3328.5,0.08227313]
[1722357954128,2.4027,3328.8,3328.4,0.08233101]
[1722357954366,2.4027,3328.8,3328.6,0.08221526]
[1722357954564,3.510361,3328.8,3328.5,0.08227313]
[1722357954768,3.510361,3328.8,3328.7,0.0821574]
[1722357954966,2.4027,3328.8,3328.6,0.08221526]
[1722357955181,2.4027,3328.8,3328.7,0.0821574]
[1722357955326,5.47970517,3328.8,3328.7,0.0821574]
[1722357955538,5.47970517,3328.8,3328.2,38.00458]
[1722357956054,0.07292517,3328.7,3328.3,0.08238889]
[1722357956366,0.07292517,3328.7,3328.2,3.00458]
[1722357956543,0.07292517,3328.7,3328.4,0.08233101]
[1722357956746,0.07292517,3328.7,3328.3,3.08691889]
[1722357956945,2.4027,3328.8,3328.5,0.08227313]
[1722357957271,2.4027,3328.8,3328.6,0.08221526]
[1722357957476,2.4027,3328.8,3328.3,38.00453]
[1722357957628,2.666,3328.9,3328.7,0.0821574]
[1722357957825,3.46913,3328.9,3328.3,38.00447]
[1722357958048,3.46913,3328.9,3328.8,0.08212722]
[1722357958260,3.46913,3328.9,3328.3,41.00894]
[1722357958459,3.46913,3328.9,3328.8,0.08212722]
[1722357958659,3.46913,3328.9,3328.5,3.00432]
[1722357958972,2.3614,3329.1,3328.8,0.08212722]
[1722357959130,6.469508,3329.3,3328.7,3.00416]
[1722357959334,6.469508,3329.3,3328.9,0.08205947]
[1722357959532,6.469508,3329.3,3328.8,0.08211535]
[1722357959731,0.9473088,3329.2,3329.0,0.08198975]
[1722357959971,0.9473088,3329.2,3328.9,0.0820476]
[1722357960126,0.9473088,3329.2,3329.1,0.08193189]
[1722357960345,0.9473088,3329.2,3329.0,0.08198975]
[1722357960570,7.39,3329.5,3328.6,0.06008363]
[1722357960857,7.39,3329.5,3329.2,3.00366]
[1722357961061,2.4625,3329.2,3328.7,0.08214947]
[1722357961269,5.67008,3328.8,3327.9,3.00484]
[1722357961431,0.07292517,3328.7,3327.9,3.00484]
[1722357961771,3.07710517,3328.7,3328.0,3.00479]
[1722357962289,3.0044,3328.5,3327.8,41.00983]
[1722357962439,0.07292517,3328.4,3327.8,35.301]
[1722357962779,0.07292517,3328.7,3328.1,3.00464]
[1722357963143,3.07711517,3328.7,3328.1,3.00464]
[1722357963570,3.07711517,3328.7,3328.0,0.301]
[1722357963735,3.00435,3328.5,3328.0,0.301]
[1722357963941,0.07292517,3328.4,3328.0,0.301]
[1722357965239,0.07292517,3328.4,3327.8,38.00496]
[1722357965435,0.07292517,3328.4,3327.8,35.0]
[1722357965639,0.07292517,3328.4,3327.8,38.00493]
[1722357965841,0.07292517,3328.4,3327.9,3.00481]
[1722357966041,3.07728517,3328.5,3327.8,35.301]
[1722357966376,3.00449,3328.4,3327.8,35.301]
[1722357966547,0.07292517,3328.3,3327.8,35.301]
[1722357966892,0.07292517,3328.3,3327.8,38.30592]
[1722357967094,0.07292517,3328.3,3327.9,3.00484]
[1722357967298,0.07292517,3328.5,3327.8,35.301]
[1722357967616,7.39,3328.8,3328.5,3.00426]
[1722357967773,7.39,3328.8,3328.7,3.00417]
[1722357968106,3.00363,3329.3,3328.7,3.00417]
[1722357968395,0.07292517,3329.2,3328.6,3.30526]
[1722357968758,3.07664517,3329.2,3328.6,3.30526]
[1722357969078,3.00382,3329.1,3328.6,0.301]
[1722357969279,0.07292517,3329.0,3328.4,3.00442]
[1722357969491,0.07292517,3329.0,3328.6,0.301]
[1722357969688,3.00376,3329.2,3328.6,0.301]
[1722357969891,0.07292517,3329.1,3328.6,0.301]
[1722357970391,0.07292517,3329.1,3328.5,3.30532]
[1722357970601,3.004,3328.9,3328.5,0.301]
[1722357970780,5.74306517,3328.8,3328.2,0.301]
[1722357970986,0.07292517,3328.7,3328.2,0.301]
[1722357971183,0.64722869,3328.7,3327.8,35.0]
[1722357971363,3.00436,3328.5,3327.8,35.0]
[1722357971561,0.07292517,3328.4,3327.8,35.0]
[1722357972087,0.07292517,3328.4,3327.9,3.00489]
[1722357972399,0.07292517,3328.4,3327.8,35.0]
[1722357973172,0.07292517,3328.4,3327.8,38.00496]
[1722357973571,0.07292517,3328.4,3327.8,38.00493]
[1722357974820,3.07736517,3328.4,3327.8,38.00493]
[1722357975121,3.07736517,3328.4,3327.3,3.00541]
[1722357975122,3.00489,3327.9,3327.3,0.301]
[1722357975317,0.07292517,3327.8,3327.3,0.301]
[1722357975476,0.07292517,3327.8,3327.2,3.30651]
[1722357977693,3.07791517,3327.8,3327.2,3.30651]
[1722357978019,0.07292517,3327.7,3327.2,3.30647]
[1722357978872,0.07292517,3327.8,3327.2,3.30647]
[1722357980229,0.07292517,3327.8,3327.2,6.31194]
[1722357980382,0.07292517,3327.8,3327.4,3.0053]
[1722357980810,0.07292517,3327.8,3327.2,3.30644]
[1722357980978,0.07292517,3327.8,3327.3,3.30639]
[1722357981876,0.07292517,3327.8,3327.0,6.01129]
[1722357981877,0.64730969,3327.8,3327.0,6.01129]
[1722357982078,0.07292517,3327.7,3327.0,3.00563]
[1722357982320,0.07292517,3327.7,3327.1,3.00556]
[1722357983342,0.07292517,3327.7,3326.9,3.30672]
[1722357983343,6.12466814,3327.7,3326.9,3.30672]
[1722357983625,6.12466814,3327.7,3327.1,3.00557]
[1722357983626,3.11954814,3327.7,3327.1,3.00557]
[1722357983832,2.45382517,3327.7,3327.2,3.00547]
[1722357984124,2.45382517,3327.7,3327.1,3.00557]
[1722357984714,2.45382517,3327.7,3327.3,3.00542]
[1722357984898,2.45382517,3327.7,3327.2,3.00552]
[1722357985328,2.45382517,3327.7,3327.1,3.00561]
[1722357985482,3.35763514,3327.7,3327.1,3.00561]
[1722357985679,6.36272514,3327.7,3327.1,3.00561]
[1722357985891,9.36785514,3327.7,3327.1,3.00561]
[1722357986175,6.36272514,3327.7,3327.0,3.0057]
[1722357986418,3.00517,3327.6,3327.0,3.0057]
[1722357986640,2.666,3327.2,3326.9,0.301]
[1722357986922,2.47172517,3327.1,3326.9,0.301]
[1722357987424,2.47172517,3327.1,3326.4,3.0062]
[1722357987425,5.47734517,3327.1,3326.4,3.0062]
[1722357987578,6.29167969,3327.1,3326.4,3.0062]
[1722357987778,3.00575,3327.0,3326.4,3.0062]
[1722357988024,3.00575,3327.0,3326.3,3.30734]
[1722357988025,0.07292517,3326.9,3326.3,3.30734]
[1722357988848,0.07292517,3326.9,3326.4,3.0062]
[1722357989628,0.07292517,3326.9,3326.3,0.301]
[1722357989629,2.666,3326.8,3326.3,0.301]
[1722357989815,3.07890517,3326.7,3326.3,0.301]
[1722357990016,0.07292517,3326.7,3326.3,0.301]
[1722357990232,0.07292517,3326.7,3326.4,0.07576379]
[1722357991247,0.07292517,3326.7,3326.5,3.00611]
[1722357991455,3.07868517,3327.0,3326.4,0.07576379]
[1722357991625,3.55354852,3326.9,3326.6,0.07597964]
[1722357991821,0.07292517,3326.8,3326.5,0.07603758]
[1722357992019,0.07292517,3326.8,3326.7,0.0759217]
[1722357992219,0.07292517,3326.8,3326.6,0.07597964]
[1722357992450,0.07292517,3326.8,3326.7,0.0759217]
[1722357992752,0.07292517,3326.8,3326.3,3.30728]
[1722357992954,2.52432517,3326.7,3325.9,3.00664]
[1722357993105,2.52432517,3326.7,3326.0,3.00658]
[1722357993622,5.53030517,3326.7,3326.0,3.00658]
[1722357993837,3.00607,3326.6,3326.0,3.00658]
[1722357994037,2.52432517,3326.7,3326.0,3.00654]
[1722357994038,0.07292517,3326.5,3326.0,3.00654]
[1722357994244,0.07292517,3326.5,3326.0,3.30755]
[1722357994554,0.07292517,3326.5,3326.2,3.00642]
[1722357994716,2.3395,3327.1,3326.2,0.301]
[1722357995035,0.07292517,3327.0,3326.6,3.00601]
[1722357995423,0.07292517,3327.0,3326.7,38.00595]
[1722357996078,0.07292517,3327.1,3326.7,35.0]
[1722357996534,0.07292517,3327.1,3326.7,38.00591]
[1722357996736,1.08581769,3327.1,3326.2,0.301]
[1722357996955,1.08581769,3327.1,3326.4,3.00625]
[1722357997118,3.00575,3327.0,3326.3,0.301]
[1722357997318,0.48208194,3326.9,3326.4,35.0]
[1722357998646,0.48208194,3326.9,3326.4,38.0062]
[1722357998844,0.07292517,3326.9,3326.5,3.00615]
[1722357999153,0.07292517,3326.9,3326.4,38.00624]
[1722357999340,0.07292517,3326.9,3326.5,3.00616]
[1722357999541,0.07292517,3326.9,3326.4,35.0]
[1722357999948,3.00602,3326.7,3326.2,0.301]
[1722358000173,0.07292517,3326.6,3326.2,0.301]
[1722358000489,3.07905517,3326.6,3326.2,0.301]
[1722358000838,0.07292517,3326.6,3326.2,0.301]
[1722358001073,0.07292517,3326.6,3326.1,0.301]
[1722358001256,0.07292517,3326.6,3326.1,3.3075]
[1722358001456,0.07292517,3326.6,3325.4,3.00714]
[1722358001457,2.666,3326.2,3325.4,3.00714]
[1722358001680,2.666,3326.2,3325.4,3.00709]
[1722358001681,0.07292517,3326.1,3325.4,3.00709]
[1722358001881,0.07292517,3326.1,3325.4,3.00707]
[1722358002106,0.07292517,3326.1,3325.6,3.00697]
[1722358002383,0.07292517,3326.1,3325.4,3.00709]
[1722358002582,0.07292517,3326.1,3325.7,3.00686]
[1722358002938,3.00626,3326.4,3325.8,3.00679]
[1722358003579,0.07292517,3326.3,3325.8,3.00679]
[1722358004087,0.07292517,3326.3,3325.8,3.00673]
[1722358004455,0.07292517,3326.4,3325.8,0.601365]
[1722358004787,2.666,3327.0,3326.2,3.0064]
[1722358004990,3.00558,3327.2,3326.4,3.0062]
[1722358004991,0.07292517,3326.9,3326.4,3.0062]
[1722358005189,0.07292517,3326.9,3326.5,35.0]
[1722358005481,0.07292517,3326.9,3326.5,35.07398691]
[1722358006182,0.38078969,3326.9,3326.5,35.07398691]
[1722358006352,8.48514,3326.6,3326.5,35.07398691]
[1722358006767,5.47907,3326.6,3326.5,35.07398691]
[1722358006936,8.55806517,3326.6,3326.5,35.07398691]
[1722358007467,0.07292517,3326.6,3326.5,35.07398691]
[1722358007641,3.95408769,3326.6,3326.5,35.07398691]
[1722358008055,3.95408769,3326.6,3326.5,0.07398691]
[1722358008379,3.95408769,3326.6,3326.0,3.00657]
[1722358008686,0.30786452,3326.9,3326.5,0.07396147]
[1722358008886,0.07292517,3326.8,3326.3,3.00629]
[1722358009055,0.07292517,3326.8,3326.6,0.07390353]
[1722358009256,0.07292517,3326.8,3326.2,3.00642]
[1722358009485,0.07292517,3326.8,3326.3,35.0]
[1722358009696,0.07292517,3326.8,3326.3,35.07407736]
[1722358009988,3.00604,3326.7,3326.3,35.07407736]
[1722358010149,0.07292517,3326.8,3326.3,35.07407736]
[1722358010899,3.07885517,3326.8,3326.3,35.07407736]
[1722358011300,3.00608,3326.6,3326.3,35.07407736]
[1722358011607,3.07912517,3326.5,3326.3,35.07407736]
[1722358011809,0.07292517,3326.5,3326.3,0.07407736]
[1722358012110,3.00625,3326.4,3326.3,0.07407736]
[1722358012319,3.00656,3326.1,3325.6,0.301]
[1722358012520,2.2988,3326.3,3325.3,3.00723]
[1722358012521,0.07292517,3326.0,3325.3,3.00723]
[1722358012696,0.07292517,3326.0,3325.7,0.07442512]
[1722358012904,0.07292517,3326.0,3325.4,3.00715]
[1722358012905,0.07292517,3326.0,3325.5,35.0]
[1722358013082,3.0067,3325.9,3325.5,35.0]
[1722358013283,3.07954517,3326.0,3325.6,0.07448309]
[1722358013604,3.00671,3325.9,3325.6,0.07448309]
[1722358013944,3.07972517,3325.8,3325.6,0.07448309]
[1722358014287,0.07292517,3325.8,3325.7,0.07442512]
[1722358014737,0.07292517,3325.8,3325.5,3.00706]
[1722358014885,3.00671,3325.9,3325.7,0.07448385]
[1722358015251,0.07292517,3325.8,3325.3,38.0072]
[1722358015732,0.07292517,3325.8,3325.0,3.30851]
[1722358015887,3.07977517,3325.8,3325.1,3.30837]
[1722358016087,0.07292517,3325.8,3325.2,3.0073]
[1722358016287,0.07292517,3325.8,3325.2,3.00727]
[1722358016607,0.07292517,3325.8,3325.3,3.00724]
[1722358016809,0.07292517,3326.0,3325.5,3.00704]
[1722358017014,6.22766925,3326.3,3325.6,3.00696]
[1722358017185,0.07292517,3326.2,3325.7,3.00688]
[1722358017388,0.07292517,3326.2,3325.8,35.0]
[1722358017620,3.07935517,3326.2,3325.4,5.3917]
[1722358017881,3.00657,3326.1,3325.4,3.0071]
[1722358018198,0.07292517,3326.0,3325.5,38.00699]
[1722358018523,0.07292517,3326.0,3325.5,38.00705]
[1722358019843,0.07292517,3326.0,3325.5,35.0]
[1722358020045,10.67010252,3326.5,3325.7,3.0068]
[1722358020327,10.67010252,3326.5,3325.6,3.04901288]
[1722358020328,3.07917517,3326.4,3325.8,3.00679]
[1722358020528,3.07917517,3326.4,3325.8,0.07442588]
[1722358020831,3.00634,3326.3,3325.7,3.00688]
[1722358020991,0.07292517,3326.2,3325.7,3.30788]
[1722358021185,0.07292517,3326.2,3325.8,3.08120588]
[1722358021434,0.07292517,3326.2,3325.8,0.07442588]
[1722358021583,3.07936517,3326.2,3325.8,0.07442588]
[1722358021789,3.68792769,3326.2,3325.6,3.00697]
[1722358022001,0.07292517,3326.1,3325.9,0.07436792]
[1722358022305,0.07292517,3326.1,3325.7,3.00687]
[1722358022822,0.07292517,3326.1,3325.8,0.07442588]
[1722358023329,3.07944517,3326.1,3325.5,38.00706]
[1722358023531,0.07292517,3326.2,3325.9,0.07436792]